[Event "Titled Tuesday Blitz March 14 Late 2023"]
[White "babbilator"]
[Black "Stelmaszyk, Nico"]
[BlackFideId "16200462"]
[WhiteElo "2228"]
[BlackElo "2255"]
[Result "0-1"]
[Round "08"]
[TimeControl "180+2"]
[Date "2023.03.14"]
[WhiteClock "0:00:09"]
[BlackClock "0:01:21"]

1. e4 {[%clk 0:02:56]}  c5 {[%clk 0:02:44]} 2. Nc3 {[%clk 0:02:56]}  e6 {[%clk 0:02:43]} 3. Nf3 {[%clk 0:02:56]}  Nf6 {[%clk 0:02:41]} 4. e5 {[%clk 0:02:46]}  Nd5 {[%clk 0:02:38]} 5. Ne4 {[%clk 0:02:45]}  d6 {[%clk 0:02:35]} 6. exd6 {[%clk 0:02:21]}  Bxd6 {[%clk 0:02:36]} 7. Nxd6+ {[%clk 0:02:21]}  Qxd6 {[%clk 0:02:34]} 8. d4 {[%clk 0:02:21]}  Nc6 {[%clk 0:02:31]} 9. dxc5 {[%clk 0:02:11]}  Qxc5 {[%clk 0:02:32]} 10. a3 {[%clk 0:02:04]}  O-O {[%clk 0:02:31]} 11. Bd3 {[%clk 0:02:04]}  Nf6 {[%clk 0:02:24]} 12. Be3 {[%clk 0:01:50]}  Qh5 {[%clk 0:02:21]} 13. Nd4 {[%clk 0:01:46]}  Nxd4 {[%clk 0:02:18]} 14. Bxd4 {[%clk 0:01:43]}  Qxd1+ {[%clk 0:02:18]} 15. Rxd1 {[%clk 0:01:44]}  e5 {[%clk 0:02:18]} 16. Bxe5 {[%clk 0:01:11]}  Re8 {[%clk 0:02:17]} 17. f4 {[%clk 0:01:11]}  Ng4 {[%clk 0:02:17]} 18. O-O {[%clk 0:00:57]}  Ne3 {[%clk 0:02:15]} 19. Bb5 {[%clk 0:00:44]}  Rf8 {[%clk 0:02:11]} 20. Bd6 {[%clk 0:00:42]}  Nxd1 {[%clk 0:02:09]} 21. Bxf8 {[%clk 0:00:41]}  Kxf8 {[%clk 0:02:07]} 22. Rxd1 {[%clk 0:00:40]}  Bg4 {[%clk 0:01:51]} 23. Rd2 {[%clk 0:00:36]}  Rc8 {[%clk 0:01:47]} 24. Bd3 {[%clk 0:00:34]}  h6 {[%clk 0:01:47]} 25. Kf2 {[%clk 0:00:31]}  b6 {[%clk 0:01:44]} 26. h3 {[%clk 0:00:24]}  Be6 {[%clk 0:01:44]} 27. g4 {[%clk 0:00:24]}  Rd8 {[%clk 0:01:39]} 28. Kg3 {[%clk 0:00:21]}  Rd4 {[%clk 0:01:30]} 29. h4 {[%clk 0:00:21]}  Rd6 {[%clk 0:01:22]} 30. g5 {[%clk 0:00:21]}  hxg5 {[%clk 0:01:21]} 31. hxg5 {[%clk 0:00:21]}  Ke7 {[%clk 0:01:22]} 32. f5 {[%clk 0:00:16]}  Bd7 {[%clk 0:01:22]} 33. Kf4 {[%clk 0:00:16]}  Rd4+ {[%clk 0:01:22]} 34. Ke5 {[%clk 0:00:15]}  Rg4 {[%clk 0:01:22]} 35. g6 {[%clk 0:00:15]}  f6+ {[%clk 0:01:21]} 36. Kd5 {[%clk 0:00:14]}  Rf4 {[%clk 0:01:21]} 37. Re2+ {[%clk 0:00:13]}  Kf8 {[%clk 0:01:21]} 38. Kd6 {[%clk 0:00:13]}  Bxf5 {[%clk 0:01:21]} 39. Bxf5 {[%clk 0:00:12]}  Rxf5 {[%clk 0:01:22]} 40. Kc7 {[%clk 0:00:09]}  Rg5 {[%clk 0:01:21]} 41. Kb7 {[%clk 0:00:09]}  Rxg6 {[%clk 0:01:22]} 42. Kxa7 {[%clk 0:00:10]}  f5 {[%clk 0:01:22]} 43. Rf2 {[%clk 0:00:09]}  Rf6 {[%clk 0:01:23]} 44. c4 {[%clk 0:00:09]}  g5 {[%clk 0:01:23]} 45. b4 {[%clk 0:00:10]}  f4 {[%clk 0:01:24]} 46. c5 {[%clk 0:00:10]}  g4 {[%clk 0:01:25]} 47. cxb6 {[%clk 0:00:10]}  g3 {[%clk 0:01:25]} 48. Rf1 {[%clk 0:00:09]}  g2 {[%clk 0:01:22]} 49. b7 {[%clk 0:00:10]}  gxf1=Q {[%clk 0:01:21]} 50. b8=Q+ {[%clk 0:00:10]}  Kg7 {[%clk 0:01:20]} 51. Qc7+ {[%clk 0:00:09]}  Rf7 {[%clk 0:01:21]} 0-1


[Site "https://www.chess.com"]

[Event "Titled Tuesday Blitz March 14 Late 2023"]
[White "Kornyukov, Alexey"]
[Black "Fule, Simon"]
[WhiteFideId "4150457"]
[BlackFideId "787515"]
[WhiteElo "2352"]
[BlackElo "2385"]
[Result "0-1"]
[Round "08"]
[TimeControl "180+2"]
[Date "2023.03.14"]
[WhiteClock "0:00:02"]
[BlackClock "0:00:02"]

1. d4 {[%clk 0:03:00]}  Nf6 {[%clk 0:02:58]} 2. c4 {[%clk 0:03:00]}  d6 {[%clk 0:02:58]} 3. Nc3 {[%clk 0:02:59]}  g6 {[%clk 0:02:59]} 4. e4 {[%clk 0:03:00]}  Bg7 {[%clk 0:02:59]} 5. f3 {[%clk 0:03:00]}  O-O {[%clk 0:02:58]} 6. Bg5 {[%clk 0:03:00]}  c5 {[%clk 0:02:56]} 7. d5 {[%clk 0:03:00]}  Nbd7 {[%clk 0:02:56]} 8. Nh3 {[%clk 0:03:00]}  h6 {[%clk 0:02:54]} 9. Be3 {[%clk 0:03:00]}  Ne5 {[%clk 0:02:53]} 10. Nf2 {[%clk 0:03:00]}  a6 {[%clk 0:02:48]} 11. a4 {[%clk 0:02:59]}  Qb6 {[%clk 0:02:42]} 12. Qc1 {[%clk 0:02:43]}  Kh7 {[%clk 0:02:41]} 13. a5 {[%clk 0:02:38]}  Qc7 {[%clk 0:02:40]} 14. Be2 {[%clk 0:02:31]}  e6 {[%clk 0:02:40]} 15. O-O {[%clk 0:02:28]}  exd5 {[%clk 0:02:40]} 16. cxd5 {[%clk 0:02:26]}  Ng8 {[%clk 0:02:33]} 17. Qd2 {[%clk 0:02:12]}  f5 {[%clk 0:02:31]} 18. f4 {[%clk 0:02:04]}  Nf7 {[%clk 0:02:29]} 19. Na4 {[%clk 0:01:56]}  Ne7 {[%clk 0:02:14]} 20. Nb6 {[%clk 0:01:55]}  Rb8 {[%clk 0:02:14]} 21. g4 {[%clk 0:01:31]}  fxe4 {[%clk 0:02:00]} 22. Nxe4 {[%clk 0:01:29]}  Bd7 {[%clk 0:01:52]} 23. h3 {[%clk 0:01:18]}  Rbe8 {[%clk 0:01:50]} 24. Bd3 {[%clk 0:01:16]}  Bb5 {[%clk 0:01:45]} 25. Rf2 {[%clk 0:01:00]}  Qd8 {[%clk 0:01:41]} 26. Raf1 {[%clk 0:00:52]}  Kh8 {[%clk 0:01:17]} 27. Ng3 {[%clk 0:00:49]}  Bf6 {[%clk 0:00:36]} 28. Kg2 {[%clk 0:00:41]}  Bh4 {[%clk 0:00:32]} 29. Re2 {[%clk 0:00:37]}  Bxg3 {[%clk 0:00:29]} 30. Kxg3 {[%clk 0:00:37]}  Kg7 {[%clk 0:00:20]} 31. Qc3+ {[%clk 0:00:33]}  Kh7 {[%clk 0:00:19]} 32. b3 {[%clk 0:00:30]}  Ng8 {[%clk 0:00:16]} 33. Rfe1 {[%clk 0:00:28]}  Nf6 {[%clk 0:00:13]} 34. Bc1 {[%clk 0:00:27]}  Rxe2 {[%clk 0:00:11]} 35. Rxe2 {[%clk 0:00:27]}  Re8 {[%clk 0:00:09]} 36. Rxe8 {[%clk 0:00:26]}  Nxe8 {[%clk 0:00:10]} 37. Bb2 {[%clk 0:00:26]}  Qe7 {[%clk 0:00:06]} 38. Bxb5 {[%clk 0:00:17]}  axb5 {[%clk 0:00:07]} 39. Nc8 {[%clk 0:00:16]}  Qe2 {[%clk 0:00:06]} 40. Nxd6 {[%clk 0:00:14]}  b4 {[%clk 0:00:03]} 41. Qxc5 {[%clk 0:00:07]}  Nexd6 {[%clk 0:00:02]} 42. Bf6 {[%clk 0:00:06]}  Ne4+ {[%clk 0:00:02]} 43. Kh4 {[%clk 0:00:06]}  Nxc5 {[%clk 0:00:03]} 44. g5 {[%clk 0:00:02]}  h5 {[%clk 0:00:02]} 45. f5 {[%clk 0:00:02]}  Qf2# {[%clk 0:00:02]} 0-1


[Site "https://www.chess.com"]

[Event "Titled Tuesday Blitz March 14 Late 2023"]
[White "Curtis, John"]
[Black "Becham, Khalid"]
[WhiteFideId "3200256"]
[BlackFideId "9000275"]
[WhiteElo "2203"]
[BlackElo "2081"]
[Result "0-1"]
[Round "08"]
[TimeControl "180+2"]
[Date "2023.03.14"]
[WhiteClock "0:00:07"]
[BlackClock "0:01:09"]

1. e4 {[%clk 0:03:00]}  c5 {[%clk 0:02:58]} 2. Nf3 {[%clk 0:02:59]}  Nc6 {[%clk 0:02:59]} 3. c3 {[%clk 0:02:59]}  Nf6 {[%clk 0:02:56]} 4. d3 {[%clk 0:02:56]}  d5 {[%clk 0:02:53]} 5. e5 {[%clk 0:02:55]}  Nd7 {[%clk 0:02:49]} 6. Bf4 {[%clk 0:02:51]}  e6 {[%clk 0:02:48]} 7. Be2 {[%clk 0:02:22]}  Be7 {[%clk 0:02:47]} 8. h4 {[%clk 0:02:21]}  b6 {[%clk 0:02:44]} 9. a3 {[%clk 0:02:19]}  Ba6 {[%clk 0:02:42]} 10. d4 {[%clk 0:02:14]}  Bxe2 {[%clk 0:02:41]} 11. Qxe2 {[%clk 0:02:14]}  Qc7 {[%clk 0:02:41]} 12. Nbd2 {[%clk 0:02:09]}  cxd4 {[%clk 0:02:39]} 13. cxd4 {[%clk 0:02:09]}  Na5 {[%clk 0:02:39]} 14. O-O {[%clk 0:02:04]}  Rc8 {[%clk 0:02:38]} 15. b4 {[%clk 0:01:45]}  Nc4 {[%clk 0:02:36]} 16. Rac1 {[%clk 0:01:41]}  O-O {[%clk 0:02:30]} 17. Rc2 {[%clk 0:01:35]}  b5 {[%clk 0:02:24]} 18. Nb3 {[%clk 0:01:29]}  Qb6 {[%clk 0:02:19]} 19. Bc1 {[%clk 0:01:21]}  a5 {[%clk 0:02:15]} 20. Nc5 {[%clk 0:01:20]}  Nb8 {[%clk 0:02:10]} 21. Qd3 {[%clk 0:01:15]}  Qa7 {[%clk 0:02:03]} 22. Bg5 {[%clk 0:01:15]}  Nc6 {[%clk 0:02:00]} 23. Bxe7 {[%clk 0:01:13]}  Qxe7 {[%clk 0:02:00]} 24. Ng5 {[%clk 0:01:13]}  g6 {[%clk 0:02:00]} 25. Nf3 {[%clk 0:01:02]}  axb4 {[%clk 0:02:00]} 26. axb4 {[%clk 0:01:01]}  Nxb4 {[%clk 0:02:00]} 27. Qb3 {[%clk 0:01:01]}  Nxc2 {[%clk 0:02:00]} 28. Qxc2 {[%clk 0:01:02]}  Ra8 {[%clk 0:01:57]} 29. Qc1 {[%clk 0:01:02]}  Rfc8 {[%clk 0:01:53]} 30. Qh6 {[%clk 0:01:01]}  Qf8 {[%clk 0:01:53]} 31. Qg5 {[%clk 0:01:01]}  b4 {[%clk 0:01:52]} 32. Nh2 {[%clk 0:01:01]}  h6 {[%clk 0:01:51]} 33. Qf4 {[%clk 0:00:57]}  h5 {[%clk 0:01:49]} 34. g4 {[%clk 0:00:56]}  hxg4 {[%clk 0:01:36]} 35. Nxg4 {[%clk 0:00:56]}  b3 {[%clk 0:01:34]} 36. Nxb3 {[%clk 0:00:51]}  Ra3 {[%clk 0:01:33]} 37. Nf6+ {[%clk 0:00:49]}  Kg7 {[%clk 0:01:33]} 38. Nc5 {[%clk 0:00:49]}  Qh8 {[%clk 0:01:32]} 39. h5 {[%clk 0:00:37]}  Qh6 {[%clk 0:01:31]} 40. Qg4 {[%clk 0:00:31]}  Rh8 {[%clk 0:01:24]} 41. f4 {[%clk 0:00:27]}  Ne3 {[%clk 0:01:22]} 42. Qf3 {[%clk 0:00:20]}  Nxf1 {[%clk 0:01:19]} 43. Qxa3 {[%clk 0:00:20]}  Qxf4 {[%clk 0:01:18]} 44. Nxe6+ {[%clk 0:00:20]}  fxe6 {[%clk 0:01:14]} 45. Qe7+ {[%clk 0:00:15]}  Kh6 {[%clk 0:01:14]} 46. Qxe6 {[%clk 0:00:11]}  Ne3 {[%clk 0:01:08]} 47. Nxd5 {[%clk 0:00:07]}  Qf1+ {[%clk 0:01:08]} 48. Kh2 {[%clk 0:00:07]}  Qg2# {[%clk 0:01:09]} 0-1


[Site "https://www.chess.com"]

[Event "Titled Tuesday Blitz March 14 Late 2023"]
[White "Chabris, Christopher"]
[Black "Klenburg, Michael"]
[WhiteFideId "2005263"]
[BlackFideId "14102072"]
[WhiteElo "2201"]
[BlackElo "2396"]
[Result "1-0"]
[Round "08"]
[TimeControl "180+2"]
[Date "2023.03.14"]
[WhiteClock "0:00:02"]
[BlackClock "0:00:02"]

1. e4 {[%clk 0:02:59]}  d6 {[%clk 0:02:59]} 2. d4 {[%clk 0:02:59]}  Nf6 {[%clk 0:02:59]} 3. Nc3 {[%clk 0:02:59]}  g6 {[%clk 0:02:59]} 4. Be3 {[%clk 0:02:59]}  c6 {[%clk 0:02:58]} 5. Qd2 {[%clk 0:02:59]}  Nbd7 {[%clk 0:02:58]} 6. Bd3 {[%clk 0:02:53]}  b5 {[%clk 0:02:51]} 7. Nf3 {[%clk 0:02:52]}  Qc7 {[%clk 0:02:51]} 8. O-O {[%clk 0:02:50]}  Bg7 {[%clk 0:02:50]} 9. Bh6 {[%clk 0:02:49]}  O-O {[%clk 0:02:50]} 10. a4 {[%clk 0:02:46]}  b4 {[%clk 0:02:47]} 11. Ne2 {[%clk 0:02:46]}  c5 {[%clk 0:02:47]} 12. Bxg7 {[%clk 0:02:40]}  Kxg7 {[%clk 0:02:46]} 13. b3 {[%clk 0:02:38]}  a5 {[%clk 0:02:42]} 14. Ng3 {[%clk 0:02:38]}  h6 {[%clk 0:02:40]} 15. d5 {[%clk 0:02:30]}  Ng4 {[%clk 0:02:00]} 16. Nh4 {[%clk 0:02:12]}  Rh8 {[%clk 0:01:44]} 17. h3 {[%clk 0:02:04]}  Ngf6 {[%clk 0:01:40]} 18. f4 {[%clk 0:02:00]}  Kf8 {[%clk 0:01:33]} 19. Rae1 {[%clk 0:01:56]}  Nb6 {[%clk 0:01:32]} 20. e5 {[%clk 0:01:40]}  Nfxd5 {[%clk 0:01:30]} 21. Bxg6 {[%clk 0:01:30]}  c4 {[%clk 0:01:18]} 22. Bxf7 {[%clk 0:01:26]}  Kxf7 {[%clk 0:01:16]} 23. exd6 {[%clk 0:01:00]}  Qxd6 {[%clk 0:01:12]} 24. Qd4 {[%clk 0:00:55]}  Qf6 {[%clk 0:01:09]} 25. Re5 {[%clk 0:00:46]}  Nc3 {[%clk 0:00:46]} 26. Nhf5 {[%clk 0:00:34]}  Bxf5 {[%clk 0:00:37]} 27. Nxf5 {[%clk 0:00:10]}  Ne2+ {[%clk 0:00:19]} 28. Rxe2 {[%clk 0:00:10]}  Qxd4+ {[%clk 0:00:17]} 29. Nxd4 {[%clk 0:00:10]}  cxb3 {[%clk 0:00:18]} 30. cxb3 {[%clk 0:00:10]}  Rac8 {[%clk 0:00:17]} 31. Rfe1 {[%clk 0:00:09]}  Nd5 {[%clk 0:00:16]} 32. Nf5 {[%clk 0:00:08]}  Rc7 {[%clk 0:00:15]} 33. Re5 {[%clk 0:00:07]}  Nxf4 {[%clk 0:00:13]} 34. Rf1 {[%clk 0:00:07]}  Kf6 {[%clk 0:00:11]} 35. Rxa5 {[%clk 0:00:06]}  e5 {[%clk 0:00:11]} 36. Ne3 {[%clk 0:00:05]}  Rd8 {[%clk 0:00:08]} 37. g3 {[%clk 0:00:05]}  Rc3 {[%clk 0:00:06]} 38. Ng4+ {[%clk 0:00:04]}  Kg7 {[%clk 0:00:04]} 39. gxf4 {[%clk 0:00:04]}  Rg3+ {[%clk 0:00:04]} 40. Kh2 {[%clk 0:00:04]}  exf4 {[%clk 0:00:04]} 41. Rxf4 {[%clk 0:00:03]}  Rxb3 {[%clk 0:00:04]} 42. Ra7+ {[%clk 0:00:03]}  Kg6 {[%clk 0:00:04]} 43. Rf6+ {[%clk 0:00:03]}  Kg5 {[%clk 0:00:04]} 44. Ra5+ {[%clk 0:00:02]}  Kh4 {[%clk 0:00:02]} 45. Rxh6# {[%clk 0:00:02]} 1-0


[Site "https://www.chess.com"]

[Event "Titled Tuesday Blitz March 14 Late 2023"]
[White "Romero Ruscalleda, Josep"]
[Black "Chan, Kim Yew"]
[WhiteFideId "2231859"]
[BlackFideId "5717981"]
[WhiteElo "2183"]
[BlackElo "2206"]
[Result "1-0"]
[Round "08"]
[TimeControl "180+2"]
[Date "2023.03.14"]
[WhiteClock "0:00:09"]
[BlackClock "0:00:02"]

1. e4 {[%clk 0:02:59]}  e5 {[%clk 0:02:58]} 2. Nf3 {[%clk 0:02:59]}  Nc6 {[%clk 0:02:59]} 3. Bc4 {[%clk 0:02:58]}  Bc5 {[%clk 0:02:39]} 4. c3 {[%clk 0:02:58]}  Nf6 {[%clk 0:02:37]} 5. d3 {[%clk 0:02:58]}  d6 {[%clk 0:02:34]} 6. b4 {[%clk 0:02:57]}  Bb6 {[%clk 0:02:33]} 7. a4 {[%clk 0:02:58]}  a5 {[%clk 0:02:33]} 8. b5 {[%clk 0:02:58]}  Ne7 {[%clk 0:02:33]} 9. Bb3 {[%clk 0:02:58]}  O-O {[%clk 0:02:29]} 10. Nbd2 {[%clk 0:02:58]}  Ng6 {[%clk 0:02:23]} 11. Nc4 {[%clk 0:02:57]}  Bc5 {[%clk 0:02:23]} 12. O-O {[%clk 0:02:53]}  h6 {[%clk 0:02:11]} 13. d4 {[%clk 0:02:53]}  exd4 {[%clk 0:02:07]} 14. cxd4 {[%clk 0:02:54]}  Bb4 {[%clk 0:02:06]} 15. e5 {[%clk 0:02:49]}  Nd5 {[%clk 0:01:49]} 16. Bb2 {[%clk 0:02:43]}  Be6 {[%clk 0:01:43]} 17. Rc1 {[%clk 0:02:27]}  Ngf4 {[%clk 0:01:41]} 18. Ne3 {[%clk 0:02:21]}  Nxe3 {[%clk 0:01:21]} 19. fxe3 {[%clk 0:02:22]}  Bxb3 {[%clk 0:01:21]} 20. Qxb3 {[%clk 0:02:15]}  Ne2+ {[%clk 0:01:22]} 21. Kh1 {[%clk 0:02:15]}  Nxc1 {[%clk 0:01:23]} 22. Bxc1 {[%clk 0:02:15]}  Qe7 {[%clk 0:01:17]} 23. Bb2 {[%clk 0:02:13]}  Rad8 {[%clk 0:01:08]} 24. h3 {[%clk 0:02:11]}  dxe5 {[%clk 0:01:02]} 25. Nxe5 {[%clk 0:02:10]}  Qe6 {[%clk 0:01:03]} 26. Qc2 {[%clk 0:02:01]}  Bd6 {[%clk 0:00:52]} 27. Ng4 {[%clk 0:01:52]}  h5 {[%clk 0:00:50]} 28. d5 {[%clk 0:01:45]}  Qe7 {[%clk 0:00:45]} 29. Qc3 {[%clk 0:01:13]}  f6 {[%clk 0:00:45]} 30. Nh2 {[%clk 0:01:07]}  Be5 {[%clk 0:00:43]} 31. Qc2 {[%clk 0:01:04]}  Bxb2 {[%clk 0:00:43]} 32. Qxb2 {[%clk 0:01:04]}  Rxd5 {[%clk 0:00:39]} 33. Qb3 {[%clk 0:01:00]}  Qf7 {[%clk 0:00:40]} 34. Nf3 {[%clk 0:00:58]}  Rd7 {[%clk 0:00:35]} 35. Qc3 {[%clk 0:00:57]}  Qd5 {[%clk 0:00:34]} 36. Qxa5 {[%clk 0:00:55]}  b6 {[%clk 0:00:31]} 37. Qc3 {[%clk 0:00:54]}  Re8 {[%clk 0:00:30]} 38. Rf2 {[%clk 0:00:50]}  Qd1+ {[%clk 0:00:29]} 39. Kh2 {[%clk 0:00:50]}  Qd6+ {[%clk 0:00:29]} 40. g3 {[%clk 0:00:47]}  Rde7 {[%clk 0:00:29]} 41. Nd4 {[%clk 0:00:42]}  Qd5 {[%clk 0:00:18]} 42. Nf5 {[%clk 0:00:40]}  Re5 {[%clk 0:00:17]} 43. g4 {[%clk 0:00:20]}  hxg4 {[%clk 0:00:17]} 44. hxg4 {[%clk 0:00:21]}  Qe4 {[%clk 0:00:16]} 45. Qxc7 {[%clk 0:00:19]}  Qxg4 {[%clk 0:00:09]} 46. Nh6+ {[%clk 0:00:17]}  gxh6 {[%clk 0:00:09]} 47. Rg2 {[%clk 0:00:18]}  Qxg2+ {[%clk 0:00:04]} 48. Kxg2 {[%clk 0:00:18]}  Rxe3 {[%clk 0:00:05]} 49. Qxb6 {[%clk 0:00:17]}  Re2+ {[%clk 0:00:05]} 50. Kf3 {[%clk 0:00:17]}  R2e6 {[%clk 0:00:05]} 51. Qd4 {[%clk 0:00:16]}  Re5 {[%clk 0:00:03]} 52. b6 {[%clk 0:00:15]}  Rf5+ {[%clk 0:00:03]} 53. Kg4 {[%clk 0:00:14]}  Rg5+ {[%clk 0:00:03]} 54. Kf4 {[%clk 0:00:14]}  Rh5 {[%clk 0:00:02]} 55. Kf3 {[%clk 0:00:11]}  Rh3+ {[%clk 0:00:02]} 56. Kg2 {[%clk 0:00:11]}  Rhe3 {[%clk 0:00:01]} 57. b7 {[%clk 0:00:09]}  Re2+ {[%clk 0:00:02]} 58. Kf3 {[%clk 0:00:09]} 1-0


[Site "https://www.chess.com"]

[Event "Titled Tuesday Blitz March 14 Late 2023"]
[White "Khatena, Moshe"]
[Black "Kovacs, Klara"]
[WhiteFideId "2010461"]
[BlackFideId "733210"]
[WhiteElo "2217"]
[BlackElo "2179"]
[Result "1-0"]
[Round "08"]
[TimeControl "180+2"]
[Date "2023.03.14"]
[WhiteClock "0:00:29"]
[BlackClock "0:00:10"]

1. g4 {[%clk 0:02:55]}  e6 {[%clk 0:03:00]} 2. Bg2 {[%clk 0:02:54]}  d5 {[%clk 0:02:58]} 3. d4 {[%clk 0:02:53]}  c5 {[%clk 0:02:58]} 4. c4 {[%clk 0:02:51]}  cxd4 {[%clk 0:02:50]} 5. cxd5 {[%clk 0:02:48]}  exd5 {[%clk 0:02:46]} 6. Qxd4 {[%clk 0:02:47]}  Nc6 {[%clk 0:02:45]} 7. Qxd5 {[%clk 0:02:46]}  Qxd5 {[%clk 0:02:45]} 8. Bxd5 {[%clk 0:02:46]}  Nb4 {[%clk 0:02:45]} 9. Bb3 {[%clk 0:02:43]}  Bxg4 {[%clk 0:02:43]} 10. a3 {[%clk 0:02:34]}  Rc8 {[%clk 0:02:35]} 11. Nc3 {[%clk 0:02:34]}  Nc6 {[%clk 0:02:33]} 12. Be3 {[%clk 0:02:26]}  Nf6 {[%clk 0:02:31]} 13. Nf3 {[%clk 0:02:18]}  Bxf3 {[%clk 0:02:30]} 14. exf3 {[%clk 0:02:19]}  Ne5 {[%clk 0:02:29]} 15. Ke2 {[%clk 0:02:08]}  Bc5 {[%clk 0:02:04]} 16. Rac1 {[%clk 0:01:59]}  Bxe3 {[%clk 0:02:00]} 17. fxe3 {[%clk 0:01:59]}  O-O {[%clk 0:02:00]} 18. Nb5 {[%clk 0:01:55]}  a6 {[%clk 0:01:55]} 19. Nd6 {[%clk 0:01:53]}  Rxc1 {[%clk 0:01:35]} 20. Rxc1 {[%clk 0:01:54]}  b5 {[%clk 0:01:35]} 21. f4 {[%clk 0:01:42]}  Neg4 {[%clk 0:01:33]} 22. h3 {[%clk 0:01:40]}  Nh6 {[%clk 0:01:34]} 23. e4 {[%clk 0:01:29]}  Nh5 {[%clk 0:01:15]} 24. Kf3 {[%clk 0:01:27]}  g6 {[%clk 0:01:09]} 25. Rc7 {[%clk 0:01:23]}  Nf6 {[%clk 0:01:03]} 26. Ra7 {[%clk 0:01:15]}  Rd8 {[%clk 0:00:36]} 27. e5 {[%clk 0:01:10]}  Nd7 {[%clk 0:00:33]} 28. e6 {[%clk 0:01:03]}  Nc5 {[%clk 0:00:29]} 29. e7 {[%clk 0:00:55]}  Rb8 {[%clk 0:00:23]} 30. Bd5 {[%clk 0:00:48]}  Nf5 {[%clk 0:00:14]} 31. Nxf5 {[%clk 0:00:29]}  gxf5 {[%clk 0:00:10]} 32. Ra8 {[%clk 0:00:29]} 1-0


[Site "https://www.chess.com"]

[Event "Titled Tuesday Blitz March 14 Late 2023"]
[White "Allansdottir, Rakel Elaisa"]
[Black "Fernandez Hernandez, Gerardo"]
[WhiteFideId "2323974"]
[BlackFideId "2207400"]
[WhiteElo "2349"]
[BlackElo "2209"]
[Result "1-0"]
[Round "08"]
[TimeControl "180+2"]
[Date "2023.03.14"]
[WhiteClock "0:00:04"]
[BlackClock "0:00:02"]

1. d4 {[%clk 0:02:58]}  Nf6 {[%clk 0:02:59]} 2. c4 {[%clk 0:02:57]}  c5 {[%clk 0:03:00]} 3. e3 {[%clk 0:02:55]}  g6 {[%clk 0:02:59]} 4. Nc3 {[%clk 0:02:54]}  Bg7 {[%clk 0:02:59]} 5. Nf3 {[%clk 0:02:55]}  O-O {[%clk 0:03:00]} 6. Bd3 {[%clk 0:02:52]}  cxd4 {[%clk 0:02:59]} 7. exd4 {[%clk 0:02:52]}  d5 {[%clk 0:02:59]} 8. O-O {[%clk 0:02:50]}  Bg4 {[%clk 0:02:56]} 9. h3 {[%clk 0:02:33]}  Bxf3 {[%clk 0:02:50]} 10. Qxf3 {[%clk 0:02:33]}  Nc6 {[%clk 0:02:51]} 11. cxd5 {[%clk 0:02:26]}  Nxd4 {[%clk 0:02:46]} 12. Qf4 {[%clk 0:01:43]}  Nxd5 {[%clk 0:02:39]} 13. Nxd5 {[%clk 0:01:38]}  Qxd5 {[%clk 0:02:40]} 14. Be3 {[%clk 0:01:31]}  Ne6 {[%clk 0:02:31]} 15. Qc4 {[%clk 0:01:31]}  Rfd8 {[%clk 0:02:01]} 16. Rfd1 {[%clk 0:01:10]}  Qxc4 {[%clk 0:01:57]} 17. Bxc4 {[%clk 0:01:09]}  Bxb2 {[%clk 0:01:57]} 18. Rxd8+ {[%clk 0:01:09]}  Rxd8 {[%clk 0:01:55]} 19. Rb1 {[%clk 0:01:09]}  Be5 {[%clk 0:01:50]} 20. Rxb7 {[%clk 0:01:07]}  Rd1+ {[%clk 0:01:46]} 21. Bf1 {[%clk 0:01:07]}  Bd4 {[%clk 0:01:28]} 22. Rxe7 {[%clk 0:00:53]}  Bxe3 {[%clk 0:01:23]} 23. fxe3 {[%clk 0:00:53]}  a5 {[%clk 0:01:18]} 24. Ra7 {[%clk 0:00:46]}  Rd5 {[%clk 0:00:57]} 25. Bc4 {[%clk 0:00:45]}  Rc5 {[%clk 0:00:56]} 26. Bb3 {[%clk 0:00:39]}  Re5 {[%clk 0:00:50]} 27. Kf2 {[%clk 0:00:39]}  Ng5 {[%clk 0:00:43]} 28. Ke2 {[%clk 0:00:22]}  Rf5 {[%clk 0:00:38]} 29. g4 {[%clk 0:00:16]}  Re5 {[%clk 0:00:38]} 30. h4 {[%clk 0:00:15]}  Ne6 {[%clk 0:00:27]} 31. Kf3 {[%clk 0:00:13]}  h5 {[%clk 0:00:22]} 32. g5 {[%clk 0:00:12]}  Rf5+ {[%clk 0:00:21]} 33. Ke4 {[%clk 0:00:12]}  Nc5+ {[%clk 0:00:20]} 34. Kd4 {[%clk 0:00:12]}  Nxb3+ {[%clk 0:00:20]} 35. axb3 {[%clk 0:00:12]}  f6 {[%clk 0:00:16]} 36. gxf6 {[%clk 0:00:12]}  Rxf6 {[%clk 0:00:12]} 37. Rxa5 {[%clk 0:00:12]}  Rb6 {[%clk 0:00:11]} 38. Kc4 {[%clk 0:00:11]}  Re6 {[%clk 0:00:10]} 39. Kd4 {[%clk 0:00:09]}  Rb6 {[%clk 0:00:10]} 40. Kc4 {[%clk 0:00:09]}  Re6 {[%clk 0:00:10]} 41. Rg5 {[%clk 0:00:09]}  Kf7 {[%clk 0:00:09]} 42. b4 {[%clk 0:00:08]}  Re4+ {[%clk 0:00:08]} 43. Kd5 {[%clk 0:00:08]}  Rxe3 {[%clk 0:00:08]} 44. b5 {[%clk 0:00:07]}  Rb3 {[%clk 0:00:06]} 45. Kc6 {[%clk 0:00:06]}  Kf6 {[%clk 0:00:06]} 46. Rd5 {[%clk 0:00:05]}  Rb4 {[%clk 0:00:05]} 47. b6 {[%clk 0:00:04]}  Rc4+ {[%clk 0:00:01]} 48. Rc5 {[%clk 0:00:05]}  Rb4 {[%clk 0:00:01]} 49. b7 {[%clk 0:00:04]}  Rxb7 {[%clk 0:00:01]} 50. Kxb7 {[%clk 0:00:04]}  g5 {[%clk 0:00:02]} 51. Rxg5 {[%clk 0:00:04]} 1-0


[Site "https://www.chess.com"]